fUSD/lending_fUSD_20240408
["ID","MTS","AMOUNT","RATE_DAILY","PERIOD"]
[321835129,1712553041346,-500.0,0.00020999,2]
[321835130,1712553041358,-788.41,0.00020999,2]
[321835131,1712553041367,-500.0,0.00020999,2]
[321835132,1712553041376,-788.41,0.00020999,2]
[321835133,1712553041386,-788.41,0.00020999,2]
[321835134,1712553041395,-788.41,0.00020999,2]
[321835135,1712553041405,-788.41,0.00020999,2]
[321835136,1712553041415,-788.41,0.00020999,2]
[321835137,1712553041424,-788.41,0.00020999,2]
[321835138,1712553041434,-788.41,0.00020999,2]
[321835139,1712553041444,-788.41,0.00020999,2]
[321835140,1712553041453,-500.0,0.00020999,2]
[321835141,1712553041462,-788.41,0.00020999,2]
[321835142,1712553041472,-500.0,0.00020999,2]
[321835143,1712553041481,-788.41,0.00020999,2]
[321835144,1712553041491,-500.0,0.00020999,2]
[321835145,1712553041500,-788.41,0.00020999,2]
[321835146,1712553041509,-500.0,0.00020999,2]
[321835147,1712553041518,-788.41,0.00020999,2]
[321835148,1712553041528,-788.41,0.00020999,2]
[321835149,1712553041537,-500.0,0.00020999,2]
[321835150,1712553041546,-500.0,0.00020999,2]
[321835151,1712553041556,-500.0,0.00020999,2]
[321835152,1712553041565,-788.4427,0.00020999,2]
[321835153,1712553041574,-500.0,0.00020999,2]
[321835154,1712553041583,-500.0,0.00020999,2]
[321835155,1712553041592,-500.0,0.00020999,2]
[321835156,1712553041603,-500.0,0.00020999,2]
[321835157,1712553041613,-500.0,0.00020999,2]
[321835158,1712553041622,-292.05682384,0.00020999,2]
[321835159,1712553041631,-500.0,0.00020999,2]
[321835160,1712553041641,-500.0,0.00020999,2]
[321835161,1712553041649,-500.0,0.00020999,2]
[321835162,1712553041659,-500.0,0.00020999,2]
[321835163,1712553041669,-500.0,0.00020999,2]
[321835164,1712553041678,-500.0,0.00020999,2]
[321835165,1712553041687,-500.0,0.00020999,2]
[321835166,1712553041697,-158.20831409,0.00020999,2]
[321835167,1712553041706,-500.0,0.00020999,2]
[321835168,1712553041716,-497.64,0.00020999,2]
[321835169,1712553041725,-500.0,0.00020999,2]
[321835170,1712553041734,-388.93342722,0.00020999,2]
[321835171,1712553041744,-500.0,0.00020999,2]
[321835172,1712553041753,-224.06545743,0.00020999,2]
[321835173,1712553041763,-500.0,0.00020999,2]
[321835174,1712553041772,-500.0,0.00020999,2]
[321835175,1712553041781,-500.0,0.00020999,2]
[321835176,1712553041790,-500.0,0.00020999,2]
[321835177,1712553041799,-500.0,0.00020999,2]
[321835178,1712553041809,-152.75730849,0.00020999,2]
[321835179,1712553041818,-500.0,0.00020999,2]
[321835180,1712553041827,-500.0,0.00020999,2]
[321835181,1712553041836,-500.0,0.00020999,2]
[321835182,1712553041845,-500.0,0.00020999,2]
[321835183,1712553041855,-500.0,0.00020999,2]
[321835184,1712553041865,-500.0,0.00020999,2]
[321835185,1712553041874,-500.0,0.00020999,2]
[321835186,1712553041883,-500.0,0.00020999,2]
[321835187,1712553041892,-500.0,0.00020999,2]
[321835188,1712553041902,-500.0,0.00020999,2]
[321835189,1712553041911,-500.0,0.00020999,2]
[321835190,1712553041920,-500.0,0.00020999,2]
[321835191,1712553041929,-500.0,0.00020999,2]
[321835192,1712553041938,-500.0,0.00020999,2]
[321835193,1712553041947,-212407.40098564,0.00021,2]
[321835194,1712553041958,-150721.61942913,0.00021,2]
[321835195,1712553041968,-2114166.75559407,0.00021,2]
[321835196,1712553041993,-395723.42110396,0.00021,2]
[321835197,1712553042222,-500.0,0.00020999,2]
[321835198,1712553042232,-500.0,0.00020999,2]
[321835199,1712553042242,-500.0,0.00020999,2]
[321835200,1712553042251,-500.0,0.00020999,2]
[321835201,1712553042261,-53.56302317,0.00020999,2]
[321835202,1712553042273,-446.43697683,0.00020999,2]
[321835203,1712553042283,-18.34525343,0.00020999,2]
[321835236,1712553043006,-433.01530299,0.00020999,2]
[321835237,1712553043018,-48.63944358,0.00020999,2]
[321835238,1712553043028,-500.0,0.00020999,2]
[321835239,1712553043039,-500.0,0.00020999,2]
[321835240,1712553043049,-500.0,0.00020999,2]
[321835241,1712553043058,-29.050855,0.00020999,2]
[321835242,1712553043074,-145.749145,0.00020999,2]
[321835243,1712553043083,-2527.35270626,0.00021,2]
[321835244,1712553043393,-2694.12167099,0.00021,2]
[321835245,1712553043406,-2472.5500313,0.00021,2]
[321835246,1712553043418,-278.85080339,0.00021,2]
[321835247,1712553043432,-4024.74459897,0.00021,2]
[321835256,1712553218788,10000.0,0.00018,2]
[321835257,1712553378891,192.19,0.00016712,2]
[321835259,1712553939164,-6669.66624898,0.00018221,2]
[321835260,1712554013105,-248.15,0.00018222,2]
[321835261,1712554013131,-1177.63473903,0.00019,3]
[321835262,1712554150104,-235.74,0.00018263,2]
[321835279,1712554232237,-572.36526097,0.00019,3]
[321835280,1712554232246,-123.05596656,0.00019948,2]
[321835281,1712554232341,-580.02342564,0.00019948,2]
[321835282,1712554232351,-302.11,0.00020109,2]
[321835283,1712554232361,-1000.0,0.00020204,2]
[321835284,1712554232371,-152.83,0.0002023,2]
[321835285,1712554232380,-0.75423376,0.000205,2]
[321835300,1712554238301,-149.24576624,0.000205,2]
[321835301,1712554238310,-235.74,0.00020526,2]
[321835302,1712554238319,-150.0,0.00020653,2]
[321835303,1712554238329,-206.08826148,0.0002079,2]
[321835311,1712554238386,-817.65693019,0.0002079,2]
[321835317,1712554238518,-66.90467833,0.0002079,2]
[321835318,1712554238530,-3871.6371,0.000208,2]
[321835319,1712554238540,-500.0,0.00020832,2]
[321835320,1712554238550,-1626.0975,0.000209,2]
[321835321,1712554238560,-357.0,0.000209,2]
[321835322,1712554238570,-2322.8683,0.000209,2]
[321835323,1712554238579,-159.85649401,0.000209,2]
[321835324,1712554238590,-250.19706463,0.000209,2]
[321835325,1712554238599,-545.27454864,0.000209,2]
[321835326,1712554238608,-189.46704387,0.000209,2]
[321835327,1712554238617,-157.040814,0.00020908,2]
[321835328,1712554238626,-157.040814,0.00020908,2]
[321835329,1712554238636,-157.040814,0.00020908,2]
[321835330,1712554238646,-157.040814,0.00020908,2]
[321835331,1712554238655,-157.040814,0.00020908,2]
[321835332,1712554238664,-157.040814,0.00020908,2]
[321835333,1712554238675,-157.040814,0.00020908,2]
[321835334,1712554238685,-157.040814,0.00020908,2]
[321835335,1712554238696,-157.040814,0.00020908,2]
[321835336,1712554238706,-157.040814,0.00020908,2]
[321835337,1712554238715,-157.040814,0.00020908,2]
[321835338,1712554238725,-157.040814,0.00020908,2]
[321835339,1712554238736,-791.68,0.0002099,3]
[321835340,1712554238745,-685.2296927,0.00020996,2]
[321835341,1712554238756,-829.0347302,0.00020996,2]
[321835342,1712554238765,-2015.8417502,0.00020996,2]
[321835343,1712554238774,-156.80867088,0.00020998,3]
[321835344,1712554238784,-500.0,0.00020998,2]
[321835345,1712554238793,-406.22242112,0.00020998,2]
[321835346,1712554238803,-150.01,0.00020999,2]
[321835347,1712554238814,-1597.45586869,0.00020999,2]
[321835348,1712554238825,-510.68076842,0.00020999,2]
[321835349,1712554238835,-529.8645649,0.00020999,2]
[321835350,1712554238845,-513.79417153,0.00020999,2]
[321835351,1712554238855,-533.38793853,0.00020999,2]
[321835352,1712554238865,-586.5157846,0.00020999,2]
[321835353,1712554238876,-196.69549165,0.00020999,2]
[321835354,1712554238886,-500.0,0.00020999,2]
[321835355,1712554238895,-500.0,0.00020999,2]
[321835356,1712554238905,-500.0,0.00020999,2]
[321835357,1712554238916,-500.0,0.00020999,2]
[321835358,1712554238926,-500.0,0.00020999,2]
[321835359,1712554238937,-500.0,0.00020999,2]
[321835360,1712554238948,-500.0,0.00020999,2]
[321835361,1712554238960,-557.45,0.00020999,2]
[321835362,1712554238971,-500.0,0.00020999,2]
[321835363,1712554238981,-500.0,0.00020999,2]
[321835364,1712554238990,-500.0,0.00020999,2]
[321835365,1712554238999,-500.0,0.00020999,2]
[321835366,1712554239009,-500.0,0.00020999,2]
[321835367,1712554239020,-490.39668626,0.00020999,2]
[321835368,1712554239031,-500.0,0.00020999,2]
[321835369,1712554239041,-500.0,0.00020999,2]
[321835370,1712554239052,-500.0,0.00020999,2]
[321835371,1712554239061,-500.0,0.00020999,2]
[321835372,1712554239071,-500.0,0.00020999,2]
[321835373,1712554239080,-500.0,0.00020999,2]
[321835374,1712554239091,-500.0,0.00020999,2]
[321835375,1712554239103,-500.0,0.00020999,2]
[321835376,1712554239114,-500.0,0.00020999,2]
[321835377,1712554239124,-500.0,0.00020999,2]
[321835378,1712554239134,-500.0,0.00020999,2]
[321835379,1712554239145,-500.0,0.00020999,2]
[321835380,1712554239155,-500.0,0.00020999,2]
[321835381,1712554239166,-500.0,0.00020999,2]
[321835382,1712554239175,-576.78545291,0.00020999,2]
[321835383,1712554239187,-1296.66,0.00020999,2]
[321835384,1712554239196,-1296.66,0.00020999,2]
[321835385,1712554239206,-1296.66,0.00020999,2]
[321835386,1712554239216,-1296.66,0.00020999,2]
[321835387,1712554239226,-1296.66,0.00020999,2]
[321835388,1712554239237,-1296.66,0.00020999,2]
[321835389,1712554239246,-1296.66,0.00020999,2]
[321835390,1712554239256,-1296.66,0.00020999,2]
[321835391,1712554239265,-1296.66,0.00020999,2]
[321835392,1712554239274,-1296.66,0.00020999,2]
[321835393,1712554239287,-1296.66,0.00020999,2]
[321835394,1712554239298,-1296.66,0.00020999,2]
[321835395,1712554239310,-1296.66,0.00020999,2]
[321835396,1712554239321,-1296.66,0.00020999,2]
[321835397,1712554239334,-1296.66,0.00020999,2]
[321835398,1712554239347,-1296.66,0.00020999,2]
[321835399,1712554239358,-1296.66,0.00020999,2]
[321835400,1712554239370,-1296.66,0.00020999,2]
[321835401,1712554239380,-1296.66,0.00020999,2]
[321835402,1712554239390,-1296.66,0.00020999,2]
[321835403,1712554239401,-1296.66,0.00020999,2]
[321835404,1712554239410,-1296.66,0.00020999,2]
[321835405,1712554239419,-1296.66,0.00020999,2]
[321835406,1712554239431,-1296.72,0.00020999,2]
[321835407,1712554239440,-500.0,0.00020999,2]
[321835408,1712554239451,-500.0,0.00020999,2]
[321835409,1712554239464,-500.0,0.00020999,2]
[321835410,1712554239474,-500.0,0.00020999,2]
[321835411,1712554239485,-500.0,0.00020999,2]
[321835412,1712554239497,-500.0,0.00020999,2]
[321835413,1712554239508,-500.0,0.00020999,2]
[321835414,1712554239518,-500.0,0.00020999,2]
[321835415,1712554239528,-424.34,0.00020999,2]
[321835416,1712554239735,-500.0,0.00020999,2]
[321835417,1712554239745,-500.0,0.00020999,2]
[321835418,1712554239755,-500.0,0.00020999,2]
[321835419,1712554239764,-500.0,0.00020999,2]
[321835420,1712554239774,-500.0,0.00020999,2]
[321835421,1712554239784,-500.0,0.00020999,2]
[321835422,1712554239793,-315.42858937,0.00020999,2]
[321835423,1712554239803,-500.0,0.00020999,2]
[321835424,1712554239815,-500.0,0.00020999,2]
[321835425,1712554239825,-500.0,0.00020999,2]
[321835426,1712554239834,-500.0,0.00020999,2]
[321835427,1712554239844,-500.0,0.00020999,2]
[321835428,1712554239854,-500.0,0.00020999,2]
[321835429,1712554239864,-500.0,0.00020999,2]
[321835430,1712554239873,-558.41,0.00020999,2]
[321835431,1712554239882,-497.64,0.00020999,2]
[321835432,1712554239893,-500.0,0.00020999,2]
[321835433,1712554239903,-638.67689456,0.00020999,2]
[321835434,1712554239913,-388.93342722,0.00020999,2]
[321835435,1712554239923,-500.0,0.00020999,2]
[321835436,1712554239933,-500.0,0.00020999,2]
[321835437,1712554239944,-500.0,0.00020999,2]
[321835438,1712554239954,-500.0,0.00020999,2]
[321835439,1712554239963,-500.0,0.00020999,2]
[321835440,1712554239972,-152.75730849,0.00020999,2]
[321835441,1712554239982,-500.0,0.00020999,2]
[321835442,1712554239992,-500.0,0.00020999,2]
[321835443,1712554240002,-500.0,0.00020999,2]
[321835444,1712554240011,-500.0,0.00020999,2]
[321835445,1712554240021,-342.84370455,0.00020999,2]
[321835446,1712554240031,-500.0,0.00020999,2]
[321835447,1712554240041,-500.0,0.00020999,2]
[321835448,1712554240051,-500.0,0.00020999,2]
[321835449,1712554240060,-500.0,0.00020999,2]
[321835450,1712554240070,-500.0,0.00020999,2]
[321835451,1712554240082,-500.0,0.00020999,2]
[321835452,1712554240093,-500.0,0.00020999,2]
[321835453,1712554240102,-500.0,0.00020999,2]
[321835454,1712554240112,-500.0,0.00020999,2]
[321835455,1712554240123,-500.0,0.00020999,2]
[321835456,1712554240133,-500.0,0.00020999,2]
[321835457,1712554240144,-500.0,0.00020999,2]
[321835458,1712554240153,-500.0,0.00020999,2]
[321835459,1712554240163,-500.0,0.00020999,2]
[321835460,1712554240174,-500.0,0.00020999,2]
[321835461,1712554240185,-500.0,0.00020999,2]
[321835462,1712554240200,-500.0,0.00020999,2]
[321835463,1712554240211,-440.6571858,0.00020999,2]
[321835464,1712554240221,-500.0,0.00020999,2]
[321835465,1712554240231,-500.0,0.00020999,2]
[321835466,1712554240242,-500.0,0.00020999,2]
[321835467,1712554240253,-500.0,0.00020999,2]
[321835468,1712554240262,-500.0,0.00020999,2]
[321835469,1712554240271,-500.0,0.00020999,2]
[321835470,1712554240281,-500.0,0.00020999,2]
[321835471,1712554240291,-212407.40098564,0.00021,2]
[321835472,1712554240301,-2202506.57148834,0.00021,2]
[321835473,1712554240317,-115418.08832412,0.00021,2]
[321835474,1712554240326,-1042.37474455,0.00021,2]
[321835475,1712554240335,-279262.95803529,0.00021,2]
[321835476,1712554240505,-13914.4,0.00021,2]
[321835477,1712554240536,-626.59166763,0.00021,2]
[321835478,1712554243345,-3820.18259841,0.00021,2]
[321835479,1712554243565,-7237.88401427,0.00021,2]
[321835480,1712554243623,-547.73598015,0.00021,2]
[321835488,1712554246443,-151.78654624,0.00020999,2]
[321835489,1712554246453,-734.96174408,0.00020999,2]
[321835490,1712554246465,-463.13015744,0.00020999,2]
[321835491,1712554246475,-13122.66984256,0.00021,2]
[321835493,1712554355477,-999.999999,0.00019949,2]
[321835494,1712554414741,-150.0,0.000205,2]
[321835495,1712554414765,-638.0,0.00020548,2]
[321835496,1712554414792,-506.0,0.00020548,2]
[321835497,1712554414817,-449.0639,0.0002069,2]
[321835498,1712554414842,-152.83,0.00020742,2]
[321835499,1712554414869,-500.0,0.00020832,2]
[321835500,1712554414894,-200.0,0.0002084,2]
[321835501,1712554414918,-575.44167306,0.000209,2]
[321835502,1712554414944,-157.040814,0.00020908,2]
[321835503,1712554414970,-157.040814,0.00020908,2]
[321835504,1712554414994,-157.040814,0.00020908,2]
[321835505,1712554415019,-157.040814,0.00020908,2]
[321835506,1712554415045,-157.040814,0.00020908,2]
[321835507,1712554415070,-157.040814,0.00020908,2]
[321835508,1712554415095,-157.040814,0.00020908,2]
[321835509,1712554415121,-157.040814,0.00020908,2]
[321835510,1712554415146,-157.040814,0.00020908,2]
[321835511,1712554415172,-157.040814,0.00020908,2]
[321835512,1712554415197,-1034.47683788,0.0002097,2]
[321835513,1712554418737,151.0,0.00020853,2]
[321835515,1712554464920,210.05462874,0.000205,4]
[321835516,1712554475058,897.786828,0.00020989,2]
[321835517,1712554476984,157.040814,0.00020908,2]
[321835518,1712554477022,157.040814,0.00020908,2]
[321835519,1712554477667,157.040814,0.00020908,2]
[321835520,1712554478091,157.040814,0.00020908,2]
[321835521,1712554478678,157.040814,0.00020908,2]
[321835522,1712554486724,10104.4325,0.000209,2]
[321835523,1712554538110,12075.30142232,0.000209,2]
[321835527,1712555030223,222.85,0.00018075,2]
[321835532,1712555180287,-500.0,0.00018744,2]
[321835533,1712555180308,-598.524552,0.00018744,2]
[321835534,1712555180329,-901.475448,0.00018745,2]
[321835535,1712555184029,-1251.82423421,0.00018745,2]
[321835536,1712555184051,-748.17576579,0.00018749,2]
[321835537,1712555184564,-338.30771869,0.00018749,2]
[321835538,1712555184586,-283.34,0.00019953,2]
[321835539,1712555184607,-1378.35228131,0.00020202,2]
[321835540,1712555185168,-2000.0,0.00020202,2]
[321835541,1712555186306,-2000.0,0.00020202,2]
[321835542,1712555186837,-2000.0,0.00020202,2]
[321835543,1712555251143,-500.0,0.0001992,2]
[321835544,1712555251164,-498.77046,0.00019921,2]
[321835545,1712555251185,-160.0,0.00019922,2]
[321835546,1712555251206,-151.0,0.0002,2]
[321835547,1712555251227,-430.25771869,0.00020202,2]
[321835548,1712555251248,-840.0,0.00020264,2]
[321835549,1712555251269,-222.85,0.00020339,2]
[321835550,1712555251289,-2581.32936813,0.000206,2]
[321835551,1712555251309,-908.87489,0.0002079,2]
[321835552,1712555251331,-161.13861227,0.000208,2]
[321835553,1712555251353,-161.13861223,0.00020811,2]
[321835554,1712555251374,-161.13861223,0.00020822,2]
[321835555,1712555251395,-161.13861223,0.00020833,2]
[321835556,1712555251416,-161.13861223,0.00020844,2]
[321835557,1712555251436,-161.13861223,0.00020856,2]
[321835558,1712555251456,-161.13861223,0.00020867,2]
[321835559,1712555251475,-141.87468804,0.00020875,2]
[321835597,1712555432585,-259.85940966,0.00018998,2]
[321835598,1712555432594,-151.0,0.00019,3]
[321835599,1712555432604,-391.93659632,0.00019,3]
[321835633,1712555438404,-537.99170612,0.00018999,2]
[321835635,1712555438413,-1358.06340368,0.00019,3]
[321835637,1712555438423,-3079.3608012,0.00020797,2]
[321835648,1712555438562,-656.90000005,0.00020797,2]
[321835650,1712555438618,-6956.1471316,0.00020797,2]
[321835651,1712555438728,-1867.36985222,0.00020797,2]
[321835652,1712555438737,-161.13861223,0.00020798,2]
[321835653,1712555438747,-944.107,0.00020798,2]
[321835654,1712555438757,-1245.0442,0.00020798,2]
[321835655,1712555438768,-242.59197384,0.00020799,2]
[321835656,1712555438777,-242.59197376,0.0002081,2]
[321835658,1712555438787,-242.59197376,0.00020821,2]
[321835659,1712555438795,-242.59197376,0.00020833,2]
[321835660,1712555438805,-242.59197376,0.00020844,2]
[321835661,1712555438814,-161.13861223,0.00020849,2]
[321835662,1712555438823,-242.59197376,0.00020855,2]
[321835663,1712555438832,-242.59197376,0.00020866,2]
[321835665,1712555438841,-7383.97302486,0.00020875,2]
[321835666,1712555438851,-242.59197376,0.00020878,2]
[321835668,1712555438860,-598.69,0.00020888,3]
[321835670,1712555438870,-242.59197376,0.00020889,2]
[321835671,1712555438879,-500.0,0.00020896,2]
[321835672,1712555438889,-184.20781202,0.00020897,2]
[321835673,1712555438898,-500.0,0.00020897,2]
[321835674,1712555438909,-500.0,0.00020897,2]
[321835675,1712555438918,-500.0,0.00020897,2]
[321835676,1712555438927,-500.0,0.00020897,2]
[321835677,1712555438936,-315.42858937,0.00020897,2]
[321835678,1712555438945,-1320.78,0.00020897,2]
[321835679,1712555438955,-1320.78,0.00020897,2]
[321835680,1712555438964,-500.0,0.00020897,2]
[321835681,1712555438973,-500.0,0.00020897,2]
[321835682,1712555438982,-500.0,0.00020897,2]
[321835683,1712555438991,-500.0,0.00020897,2]
[321835684,1712555439003,-500.0,0.00020897,2]
[321835685,1712555439013,-500.0,0.00020897,2]
[321835686,1712555439022,-500.0,0.00020897,2]
[321835687,1712555439031,-500.0,0.00020897,2]
[321835688,1712555439040,-500.0,0.00020897,2]
[321835689,1712555439049,-500.0,0.00020897,2]
[321835690,1712555439058,-196.69549165,0.00020897,2]
[321835691,1712555439069,-500.0,0.00020897,2]
[321835692,1712555439080,-337.15403941,0.00020897,2]
[321835693,1712555439089,-500.0,0.00020897,2]
[321835694,1712555439098,-695698.9840238,0.00020898,2]
[321835695,1712555439108,-1320.78,0.00020898,2]
[321835696,1712555439118,-500.0,0.00020898,2]
[321835697,1712555439127,-500.0,0.00020898,2]
[321835698,1712555439137,-500.0,0.00020898,2]
[321835699,1712555439146,-2557.2247715,0.00020899,2]
[321835700,1712555439155,-500.0,0.00020899,2]
[321835701,1712555439165,-500.0,0.00020899,2]
[321835702,1712555439174,-500.0,0.00020899,2]
[321835703,1712555439184,-500.0,0.00020899,2]
[321835704,1712555439193,-500.0,0.00020899,2]
[321835705,1712555439202,-500.0,0.00020899,2]
[321835706,1712555439212,-500.0,0.00020899,2]
[321835707,1712555439221,-500.0,0.00020899,2]
[321835708,1712555439232,-500.0,0.00020899,2]
[321835709,1712555439241,-500.0,0.00020899,2]
[321835710,1712555439250,-500.0,0.00020899,2]
[321835711,1712555439261,-500.0,0.00020899,2]
[321835712,1712555439272,-500.0,0.00020899,2]
[321835713,1712555439281,-500.0,0.00020899,2]
[321835714,1712555439290,-202.52290502,0.00020899,2]
[321835715,1712555439299,-500.0,0.00020899,2]
[321835716,1712555439309,-500.0,0.00020899,2]
[321835717,1712555439318,-500.0,0.00020899,2]
[321835718,1712555439327,-500.0,0.00020899,2]
[321835719,1712555439336,-500.0,0.00020899,2]
[321835720,1712555439345,-500.0,0.00020899,2]
[321835721,1712555439354,-500.0,0.00020899,2]
[321835722,1712555439364,-500.0,0.00020899,2]
[321835723,1712555439373,-500.0,0.00020899,2]
[321835724,1712555439384,-500.0,0.00020899,2]
[321835725,1712555439393,-500.0,0.00020899,2]
[321835726,1712555439402,-500.0,0.00020899,2]
[321835727,1712555439412,-500.0,0.00020899,2]
[321835728,1712555439421,-500.0,0.00020899,2]
[321835729,1712555439430,-500.0,0.00020899,2]
[321835730,1712555439446,-500.0,0.00020899,2]
[321835731,1712555439455,-500.0,0.00020899,2]
[321835732,1712555439464,-500.0,0.00020899,2]
[321835733,1712555439473,-500.0,0.00020899,2]
[321835734,1712555439482,-505.29245463,0.00020899,2]
[321835735,1712555439492,-500.0,0.00020899,2]
[321835736,1712555439503,-500.0,0.00020899,2]
[321835737,1712555439514,-500.0,0.00020899,2]
[321835738,1712555439523,-500.0,0.00020899,2]
[321835739,1712555439532,-500.0,0.00020899,2]
[321835740,1712555439541,-413.69608094,0.00020899,2]
[321835741,1712555439550,-500.0,0.00020899,2]
[321835742,1712555439559,-500.0,0.00020899,2]
[321835743,1712555439569,-500.0,0.00020899,2]
[321835744,1712555439578,-500.0,0.00020899,2]
[321835745,1712555439587,-500.0,0.00020899,2]
[321835746,1712555439595,-500.0,0.00020899,2]
[321835747,1712555439604,-500.0,0.00020899,2]
[321835748,1712555439613,-500.0,0.00020899,2]
[321835749,1712555439622,-500.0,0.00020899,2]
[321835750,1712555439631,-500.0,0.00020899,2]
[321835751,1712555439640,-500.0,0.00020899,2]
[321835752,1712555439649,-500.0,0.00020899,2]
[321835753,1712555439659,-500.0,0.00020899,2]
[321835754,1712555439669,-500.0,0.00020899,2]
[321835755,1712555439678,-500.0,0.00020899,2]
[321835756,1712555439687,-500.0,0.00020899,2]
[321835757,1712555439696,-500.0,0.00020899,2]
[321835758,1712555439705,-500.0,0.00020899,2]
[321835759,1712555439715,-500.0,0.00020899,2]
[321835760,1712555439724,-500.0,0.00020899,2]
[321835761,1712555439733,-500.0,0.00020899,2]
[321835762,1712555439742,-500.0,0.00020899,2]
[321835763,1712555439751,-500.0,0.00020899,2]
[321835764,1712555439762,-500.0,0.00020899,2]
[321835765,1712555439770,-500.0,0.00020899,2]
[321835766,1712555439780,-634.40116904,0.00020899,2]
[321835767,1712555439789,-500.0,0.00020899,2]
[321835768,1712555439798,-500.0,0.00020899,2]
[321835769,1712555439808,-500.0,0.00020899,2]
[321835770,1712555439817,-500.0,0.00020899,2]
[321835771,1712555439826,-500.0,0.00020899,2]
[321835772,1712555439835,-545.40481168,0.00020899,2]
[321835773,1712555439845,-500.0,0.00020899,2]
[321835774,1712555439854,-500.0,0.00020899,2]
[321835775,1712555439863,-500.0,0.00020899,2]
[321835776,1712555439872,-579.36088012,0.00020899,2]
[321835777,1712555439882,-500.0,0.00020899,2]
[321835778,1712555439891,-500.0,0.00020899,2]
[321835779,1712555439900,-500.0,0.00020899,2]
[321835780,1712555439910,-500.0,0.00020899,2]
[321835781,1712555439919,-500.0,0.00020899,2]
[321835782,1712555439928,-500.0,0.00020899,2]
[321835783,1712555439938,-500.0,0.00020899,2]
[321835784,1712555439947,-500.0,0.00020899,2]
[321835785,1712555439957,-500.0,0.00020899,2]
[321835786,1712555439966,-500.0,0.00020899,2]
[321835787,1712555439975,-500.0,0.00020899,2]
[321835788,1712555439985,-500.0,0.00020899,2]
[321835789,1712555439994,-336.16944112,0.00020899,2]
[321835790,1712555440005,-500.0,0.00020899,2]
[321835791,1712555440015,-500.0,0.00020899,2]
[321835792,1712555440025,-500.0,0.00020899,2]
[321835793,1712555440035,-500.0,0.00020899,2]
[321835794,1712555440045,-500.0,0.00020899,2]
[321835795,1712555440055,-470.0,0.00020899,2]
[321835796,1712555440065,-500.0,0.00020899,2]
[321835797,1712555440077,-500.0,0.00020899,2]
[321835798,1712555440087,-500.0,0.00020899,2]
[321835799,1712555440096,-214.93529477,0.00020899,2]
[321835800,1712555440105,-500.0,0.00020899,2]
[321835801,1712555440116,-500.0,0.00020899,2]
[321835802,1712555440126,-500.0,0.00020899,2]
[321835803,1712555440136,-500.0,0.00020899,2]
[321835804,1712555440146,-500.0,0.00020899,2]
[321835805,1712555440156,-500.0,0.00020899,2]
[321835806,1712555440165,-500.0,0.00020899,2]
[321835807,1712555440175,-500.0,0.00020899,2]
[321835808,1712555440184,-500.0,0.00020899,2]
[321835809,1712555440194,-500.0,0.00020899,2]
[321835810,1712555440203,-500.0,0.00020899,2]
[321835812,1712555440213,-628.47,0.00020899,2]
[321835814,1712555440222,-628.47,0.00020899,2]
[321835816,1712555440231,-628.47,0.00020899,2]
[321835818,1712555440240,-628.47,0.00020899,2]